bitfinex/quotes_BTCUSD_20250723
["timestamp","ask_amount","ask_price","bid_price","bid_amount"]
[1753299472289,0.47536907,118470.0,118460.0,0.54874718]
[1753299472529,0.54296483,118470.0,118460.0,0.36303064]
[1753299472749,0.53309859,118460.0,118450.0,0.16884761]
[1753299472988,0.15,118450.0,118440.0,0.55720809]
[1753299473209,0.15,118450.0,118440.0,0.56774068]
[1753299473210,0.16688361,118450.0,118440.0,0.56774068]
[1753299473452,0.34626331,118450.0,118440.0,0.5424127]
[1753299473713,0.46536118,118450.0,118440.0,0.37147366]
[1753299473961,0.46536118,118450.0,118440.0,0.90336624]
[1753299474214,0.27962918,118450.0,118440.0,0.92025177]
[1753299474480,0.3662373,118450.0,118440.0,0.96553436]
[1753299475633,0.3662373,118450.0,118440.0,0.96653436]
[1753299476327,0.37470531,118450.0,118440.0,0.96653436]
[1753299476607,0.38314704,118450.0,118440.0,0.96553436]
[1753299476839,0.37470531,118450.0,118440.0,0.96553436]
[1753299477523,0.38314704,118450.0,118440.0,0.94923436]
[1753299477751,0.38523704,118450.0,118440.0,0.93373436]
[1753299477984,0.37679531,118450.0,118440.0,0.93078436]
[1753299478210,0.38523719,118450.0,118440.0,0.92234184]
[1753299478451,0.37679531,118450.0,118440.0,0.93078443]
[1753299479198,0.37679531,118450.0,118440.0,0.93373443]
[1753299479440,0.37470531,118450.0,118440.0,0.93373443]
[1753299480194,0.38523712,118450.0,118440.0,0.93373443]
[1753299480399,0.38523704,118450.0,118440.0,0.9307845]
[1753299480627,0.44528282,118450.0,118440.0,0.92025191]
[1753299480838,0.53820228,118450.0,118440.0,0.89492315]
[1753299481056,0.44528282,118450.0,118440.0,0.54033553]
[1753299481271,0.45372505,118450.0,118440.0,0.90336617]
[1753299481493,0.43684073,118450.0,118440.0,0.92869458]
[1753299481706,0.42839885,118450.0,118440.0,0.93713717]
[1753299481927,0.4368408,118450.0,118440.0,0.92869458]
[1753299482175,0.4368408,118450.0,118440.0,0.93713731]
[1753299482370,0.4368408,118450.0,118440.0,0.92869465]
[1753299482798,0.44528289,118450.0,118440.0,0.91180912]
[1753299483018,0.44528289,118450.0,118440.0,0.92869479]
[1753299483238,0.4368408,118450.0,118440.0,0.93713752]
[1753299483445,0.4368408,118450.0,118440.0,0.93713716]
[1753299483660,0.4368408,118450.0,118440.0,0.91180882]
[1753299483864,0.4368408,118450.0,118440.0,0.92025155]
[1753299484280,0.4368408,118450.0,118440.0,0.92869421]
[1753299485006,0.44528289,118450.0,118440.0,0.91180882]
[1753299485196,0.4368408,118450.0,118440.0,0.92869421]
[1753299485952,0.50721725,118450.0,118440.0,0.92869421]
[1753299486195,0.4368408,118450.0,118440.0,0.92869421]
[1753299486830,0.4368408,118450.0,118440.0,0.9371368]
[1753299487047,0.42839885,118450.0,118440.0,0.9371368]
[1753299487487,0.43684073,118450.0,118440.0,0.9371368]
[1753299487941,0.41151531,118450.0,118440.0,0.9371368]
[1753299488402,0.41151531,118450.0,118440.0,0.92025155]
[1753299488640,0.41151531,118450.0,118440.0,0.92869414]
[1753299489121,0.41995719,118450.0,118440.0,0.92025141]
[1753299489381,0.09294531,118450.0,118440.0,0.92551141]
[1753299489607,0.92618,118460.0,118450.0,0.19417388]
[1753299489834,1.0106573,118460.0,118450.0,0.59097452]
[1753299490067,1.0106573,118460.0,118450.0,0.59416452]
[1753299490289,0.04341874,118480.0,118460.0,0.22585749]
[1753299490290,0.55,118470.0,118460.0,0.22585749]
[1753299490522,0.7661573,118470.0,118460.0,0.95191877]
[1753299490748,0.6161573,118470.0,118460.0,0.95717877]
[1753299491432,0.53168,118470.0,118460.0,0.95717877]
[1753299491647,0.4,118470.0,118460.0,0.95717877]
[1753299491920,0.4,118470.0,118460.0,1.08885877]
[1753299492559,0.4,118470.0,118460.0,1.08985877]
[1753299494296,0.4,118470.0,118460.0,1.09085877]
[1753299501544,0.4,118470.0,118460.0,1.43085877]
[1753299502417,4.9e-05,118480.0,118470.0,0.22524111]
[1753299502722,4.9e-05,118480.0,118470.0,1.42816239]
[1753299503775,4.9e-05,118480.0,118470.0,1.43016239]
[1753299505150,4.9e-05,118480.0,118470.0,1.454978]
[1753299506035,4.9e-05,118480.0,118470.0,1.455978]
[1753299506246,1e-08,118480.0,118470.0,1.455978]
[1753299506734,1e-08,118480.0,118470.0,1.5404553]
[1753299509031,1e-08,118480.0,118470.0,1.90348594]
[1753299509477,1e-08,118480.0,118470.0,1.5404553]
[1753299512241,1e-08,118480.0,118470.0,1.5658173]
[1753299517142,1e-08,118480.0,118470.0,1.5656973]
[1753299517409,1e-08,118480.0,118470.0,1.45012]
[1753299517816,1e-08,118480.0,118470.0,1.424758]
[1753299519141,1e-08,118480.0,118470.0,1.440458]
[1753299526336,1e-08,118480.0,118470.0,1.424758]
[1753299527469,1e-08,118480.0,118470.0,1.39994239]
[1753299527699,0.00207001,118480.0,118470.0,1.39994239]
[1753299528178,0.00207001,118480.0,118470.0,1.26320239]
[1753299528179,0.13662001,118480.0,118470.0,1.26320239]
[1753299528400,0.16942001,118480.0,118470.0,1.26320239]
[1753299528619,0.16942001,118480.0,118470.0,1.26536239]
[1753299529677,0.16424,118480.0,118470.0,1.26536239]
[1753299529901,0.16631,118480.0,118470.0,1.26536239]
[1753299530333,0.16631,118480.0,118470.0,1.39680239]
[1753299531293,0.16631,118480.0,118470.0,1.40002239]
[1753299531935,0.13351,118480.0,118470.0,1.40002239]
[1753299532138,0.14941,118480.0,118470.0,1.40002239]
[1753299533576,0.14941,118480.0,118470.0,1.42576554]
[1753299534332,0.13351,118480.0,118470.0,1.42576554]
[1753299534538,0.13144,118480.0,118470.0,1.42576554]
[1753299536168,0.0321,118490.0,118480.0,0.19412472]
[1753299536414,0.15,118500.0,118490.0,0.19410833]
[1753299536622,0.4945,118520.0,118490.0,0.19410833]
[1753299536623,0.0164,118530.0,118510.0,0.16876212]
[1753299536839,0.2544773,118540.0,118530.0,0.19404283]
[1753299537071,0.2478,118550.0,118540.0,0.19402645]
[1753299537325,0.3495173,118550.0,118540.0,0.55705709]
[1753299537514,0.35801456,118550.0,118540.0,0.55705709]
[1753299537739,0.36111456,118550.0,118540.0,0.55705709]
[1753299538247,0.35266641,118550.0,118540.0,0.55705709]
[1753299538694,0.35266641,118550.0,118540.0,0.55805709]
[1753299539618,0.35266641,118550.0,118540.0,0.58289753]
[1753299539845,0.23144911,118550.0,118540.0,1.08266817]
[1753299540111,0.23144911,118550.0,118540.0,0.71963753]
[1753299540369,0.24860911,118550.0,118540.0,0.71425753]
[1753299540590,0.26811911,118550.0,118540.0,0.71425753]
[1753299541024,0.36946585,118550.0,118540.0,0.59133328]
[1753299541252,0.36103102,118550.0,118540.0,0.56649284]
[1753299541723,0.35259641,118550.0,118540.0,0.56649284]
[1753299542165,0.34948641,118550.0,118540.0,0.56649284]
[1753299542614,0.35259641,118550.0,118540.0,0.56649284]
[1753299544180,0.35259641,118550.0,118540.0,0.5917614]
[1753299544810,0.36103102,118550.0,118540.0,0.5917614]
[1753299545033,0.36946585,118550.0,118540.0,0.5917614]
[1753299545254,0.36946578,118550.0,118540.0,0.5917614]
[1753299545479,0.35259641,118550.0,118540.0,0.5917614]
[1753299546099,0.36103117,118550.0,118540.0,0.5917614]
[1753299546510,0.35259641,118550.0,118540.0,0.5917614]
[1753299547217,0.369466,118550.0,118540.0,0.5917614]
[1753299547423,0.3610311,118550.0,118540.0,0.5917614]
[1753299547624,0.36946586,118550.0,118540.0,0.5917614]
[1753299547830,0.36946586,118550.0,118540.0,0.57489025]
[1753299548092,0.36946586,118550.0,118540.0,0.5917614]
[1753299548302,0.35259641,118550.0,118540.0,0.5917614]
[1753299548710,0.36103102,118550.0,118540.0,0.5917614]
[1753299548918,0.35259641,118550.0,118540.0,0.5917614]
[1753299549140,0.34948641,118550.0,118540.0,0.5917614]
[1753299549365,0.31738641,118550.0,118540.0,0.5917614]
[1753299550054,0.35672102,118550.0,118540.0,0.22873076]
[1753299550290,0.35147641,118550.0,118540.0,0.5917614]
[1753299550498,0.3599111,118550.0,118540.0,0.5917614]
[1753299550715,0.3599111,118550.0,118540.0,0.58332593]
[1753299550934,0.35991102,118550.0,118540.0,0.5917614]
[1753299551168,0.61274125,118550.0,118540.0,0.16971941]
[1753299551394,0.7524565,118550.0,118540.0,0.53275005]
[1753299552075,0.7440216,118550.0,118540.0,0.53275005]
[1753299552288,0.73558649,118550.0,118540.0,0.36403064]
[1753299552931,0.73558649,118550.0,118540.0,0.53175005]
[1753299553411,0.73558649,118550.0,118540.0,0.36303064]
[1753299553628,0.73658649,118550.0,118540.0,0.53175005]
[1753299554551,0.51075145,118550.0,118540.0,0.54018602]
[1753299554764,0.52762153,118550.0,118540.0,0.54018602]
[1753299554990,0.52762153,118550.0,118540.0,0.53175005]
[1753299555215,0.69632671,118550.0,118540.0,0.53175005]
[1753299555887,0.83789188,118550.0,118540.0,0.36303064]
[1753299556104,0.198473,118530.0,118520.0,0.16873523]
[1753299556310,0.60190631,118530.0,118520.0,0.53176587]
[1753299556529,0.42473605,118530.0,118520.0,0.9032339]
[1753299556733,0.41948959,118530.0,118520.0,0.92854535]
[1753299556960,0.42792598,118530.0,118520.0,0.91167122]
[1753299557219,0.43636252,118530.0,118520.0,0.92110847]
[1753299557422,0.42792598,118530.0,118520.0,0.92210847]
[1753299557625,0.42792598,118530.0,118520.0,0.93054557]
[1753299557838,0.43636244,118530.0,118520.0,0.93054565]
[1753299558106,0.42792598,118530.0,118520.0,0.92010847]
[1753299558548,0.42792598,118530.0,118520.0,0.92854565]
[1753299559013,0.42792598,118530.0,118520.0,0.93698275]
[1753299559261,0.60509688,118530.0,118520.0,0.89479651]
[1753299559487,0.50259109,118530.0,118520.0,0.89479651]
[1753299559726,0.50259102,118530.0,118520.0,0.9032339]
[1753299559950,0.59666013,118530.0,118520.0,0.53176587]
[1753299561288,0.59666013,118530.0,118520.0,0.16873523]
[1753299561524,0.73822388,118530.0,118520.0,0.16873523]
[1753299561751,0.73822388,118530.0,118520.0,0.53176587]
[1753299561976,0.76550511,118530.0,118520.0,0.53176587]
[1753299562658,0.74666056,118530.0,118520.0,0.53176587]
[1753299563562,0.73822417,118530.0,118520.0,0.36303064]
[1753299566218,0.73922417,118530.0,118520.0,0.36303064]
[1753299567940,0.73922417,118530.0,118520.0,0.53177853]
[1753299568158,0.73922417,118530.0,118520.0,0.36303064]
[1753299568342,0.82370147,118530.0,118520.0,0.36303064]
[1753299569502,0.82370147,118530.0,118520.0,0.53177853]
[1753299569724,0.82370147,118530.0,118520.0,0.36303064]
[1753299571027,0.20908514,118520.0,118510.0,0.53179276]
[1753299571163,0.42687244,118520.0,118510.0,0.53179276]
[1753299571381,0.39177689,118520.0,118510.0,0.53179276]
[1753299571596,0.30729962,118520.0,118510.0,0.53179276]
[1753299571796,0.43849962,118520.0,118510.0,0.53179276]
[1753299572002,0.43006244,118520.0,118510.0,0.53179276]
[1753299573085,0.36693811,118510.0,118500.0,0.16877637]
[1753299573408,0.4357085,118510.0,118500.0,0.54868442]
[1753299573676,0.42727047,118510.0,118500.0,0.54868442]
[1753299573881,0.41585258,118510.0,118500.0,0.55712295]
[1753299574097,0.40741483,118510.0,118500.0,0.56556134]
[1753299574310,0.40741483,118510.0,118500.0,0.56758134]
[1753299574311,0.3845525,118510.0,118500.0,0.56758134]
[1753299574530,0.38460158,118510.0,118500.0,0.56758134]
[1753299574661,0.38460158,118510.0,118500.0,0.57082134]
[1753299574900,0.38460158,118510.0,118500.0,0.56238295]
[1753299575086,0.39303947,118510.0,118500.0,0.54550582]
[1753299575288,0.6363025,118510.0,118500.0,0.53180701]
[1753299575478,0.6767406,118510.0,118500.0,0.54024582]
[1753299575674,0.44191553,118510.0,118500.0,0.53180701]
[1753299575950,0.42503947,118510.0,118500.0,0.54868456]
[1753299576131,0.4250394,118510.0,118500.0,0.55712309]
[1753299576754,0.59380152,118510.0,118500.0,0.53180701]
[1753299576959,0.43347736,118510.0,118500.0,0.54024582]
[1753299577275,0.61067758,118510.0,118500.0,0.53180701]
[1753299577948,0.60224005,118510.0,118500.0,0.53180701]
[1753299578164,0.60224005,118510.0,118500.0,0.54024582]
[1753299578587,0.41660187,118510.0,118500.0,0.54868456]
[1753299578875,0.41660187,118510.0,118500.0,0.55712309]
[1753299579329,0.43347793,118510.0,118500.0,0.54868456]
[1753299579544,0.42503983,118510.0,118500.0,0.55712323]
[1753299579757,0.41660187,118510.0,118500.0,0.56556176]
[1753299580361,0.41660187,118510.0,118500.0,0.55712323]
[1753299580578,0.42503983,118510.0,118500.0,0.56556183]
[1753299580802,0.42503983,118510.0,118500.0,0.55712323]
[1753299581000,0.42503983,118510.0,118500.0,0.55712316]
[1753299581238,0.41660187,118510.0,118500.0,0.56556169]
[1753299581878,0.27696384,118510.0,118500.0,0.55712323]
[1753299582099,0.36768638,118510.0,118500.0,0.57926008]
[1753299582312,0.37412384,118510.0,118500.0,0.57926008]
[1753299582982,0.23452638,118510.0,118500.0,0.57926008]
[1753299583421,0.36568638,118510.0,118500.0,0.61136008]
[1753299583891,0.15004908,118510.0,118500.0,0.61136008]
[1753299584118,0.15004908,118510.0,118500.0,0.97439072]
[1753299584350,0.28120908,118510.0,118500.0,0.61136008]
[1753299586077,0.28964654,118510.0,118500.0,0.60292176]
[1753299586281,0.28964654,118510.0,118500.0,0.57926008]
[1753299586702,0.28964654,118510.0,118500.0,0.17721518]
[1753299586703,0.3845618,118510.0,118500.0,0.17721518]
[1753299586923,0.39874638,118510.0,118500.0,0.55712323]
[1753299587157,0.23452638,118510.0,118500.0,0.61186008]
[1753299587348,0.28116908,118510.0,118500.0,0.61186008]
[1753299587568,0.28116908,118510.0,118500.0,1.10601072]
[1753299587777,0.13116908,118510.0,118500.0,1.10601072]
[1753299588423,4.908e-05,118510.0,118500.0,1.10601072]
[1753299591354,4.908e-05,118510.0,118500.0,0.74298008]
[1753299591608,4.908e-05,118510.0,118500.0,1.10601072]
[1753299598116,4.908e-05,118510.0,118500.0,1.10597072]
[1753299600109,4.908e-05,118510.0,118500.0,0.97489072]
[1753299600379,4.908e-05,118510.0,118500.0,0.24882944]
[1753299600611,4.908e-05,118510.0,118500.0,0.61186008]
[1753299600847,4.908e-05,118510.0,118500.0,0.58712176]
[1753299601072,0.01048661,118510.0,118500.0,0.55712323]
[1753299601305,0.17706713,118510.0,118500.0,0.56556176]
[1753299601515,0.12210638,118510.0,118500.0,0.57400022]
[1753299601749,0.13214768,118510.0,118500.0,0.57399973]
[1753299601976,0.13760521,118510.0,118500.0,0.56556141]
[1753299602199,0.13760521,118510.0,118500.0,0.57399973]
[1753299602651,0.12073022,118510.0,118500.0,0.57399973]
[1753299602898,0.12916768,118510.0,118500.0,0.57399973]
[1753299603776,0.13760528,118510.0,118500.0,0.57399973]
[1753299604717,0.12916768,118510.0,118500.0,0.57610973]
[1753299604939,0.13760528,118510.0,118500.0,0.57610973]
[1753299605120,0.12916768,118510.0,118500.0,0.57610973]
[1753299606428,0.26020775,118510.0,118500.0,0.57610973]
[1753299606562,0.25860391,118510.0,118500.0,0.57610973]
[1753299606981,0.26704158,118510.0,118500.0,0.56767141]
[1753299607174,0.26704158,118510.0,118500.0,0.56767148]
[1753299607471,0.25860391,118510.0,118500.0,0.5761098]
[1753299607682,0.26704158,118510.0,118500.0,0.57610987]
[1753299608094,0.26704158,118510.0,118500.0,0.57610945]
[1753299608422,0.26704151,118510.0,118500.0,0.57610945]
[1753299608658,0.27547926,118510.0,118500.0,0.54024568]
[1753299608878,0.28690722,118510.0,118500.0,0.54024568]
[1753299609097,0.28690722,118510.0,118500.0,0.54868428]
[1753299609322,0.27846926,118510.0,118500.0,0.54868428]
[1753299609549,0.26704151,118510.0,118500.0,0.55712267]
[1753299609766,0.27547926,118510.0,118500.0,0.55712274]
[1753299609987,0.26704151,118510.0,118500.0,0.56556113]
[1753299610225,0.27547926,118510.0,118500.0,0.56556113]
[1753299610503,0.29235518,118510.0,118500.0,0.54024568]
[1753299610717,0.80123528,118510.0,118500.0,0.53180701]
[1753299611421,0.77592204,118510.0,118500.0,0.36303064]
[1753299611665,0.89780555,118510.0,118500.0,0.36303064]
[1753299611886,0.89780555,118510.0,118500.0,0.53180701]
[1753299611887,0.76676555,118510.0,118500.0,0.53180701]
[1753299612117,0.90624337,118510.0,118500.0,0.16877637]
[1753299612348,0.02531523,118500.0,118490.0,0.1941084]
[1753299612571,0.12933637,118500.0,118490.0,0.18566923]
[1753299612793,0.1293363,118500.0,118490.0,0.2025475]
[1753299613023,0.1293363,118500.0,118490.0,0.1941084]
[1753299613236,0.42662417,118500.0,118490.0,0.16879061]
[1753299613449,0.4081437,118500.0,118490.0,0.53182125]
[1753299613660,0.4081437,118500.0,118490.0,0.5402607]
[1753299613788,0.3246664,118500.0,118490.0,0.54870008]
[1753299614002,0.14745122,118500.0,118490.0,0.55713939]
[1753299614199,0.15749387,118500.0,118490.0,0.54870008]
[1753299615382,0.13762618,118500.0,118490.0,0.55713932]
[1753299615645,0.14606457,118500.0,118490.0,0.56768842]
[1753299616329,0.13762618,118500.0,118490.0,0.57612745]
[1753299616560,0.10612618,118500.0,118490.0,0.57929745]
[1753299616816,0.15530331,118500.0,118490.0,0.54237063]
[1753299617027,0.16374212,118500.0,118490.0,0.5423707]
[1753299617239,0.15530331,118500.0,118490.0,0.54870001]
[1753299618294,0.15530331,118500.0,118490.0,0.54870008]
[1753299618747,0.14686464,118500.0,118490.0,0.55713939]
[1753299618920,0.14686464,118500.0,118490.0,0.56557863]
[1753299619145,0.14686464,118500.0,118490.0,0.5740178]
[1753299619293,0.13842618,118500.0,118490.0,0.5740178]
[1753299619501,0.19847774,118500.0,118490.0,0.57085807]
[1753299619711,0.1968739,118500.0,118490.0,0.57085807]
[1753299619957,0.1968739,118500.0,118490.0,0.56241897]
[1753299620163,0.20531243,118500.0,118490.0,0.5539798]
[1753299620372,0.20531236,118500.0,118490.0,0.56241897]
[1753299620547,0.21375096,118500.0,118490.0,0.55398009]
[1753299620744,0.2221897,118500.0,118490.0,0.55398023]
[1753299620950,0.2221897,118500.0,118490.0,0.55924961]
[1753299621151,0.38252775,118500.0,118490.0,0.53182125]
[1753299621508,0.21674138,118500.0,118490.0,0.53182125]
[1753299621725,0.15668947,118500.0,118490.0,0.54870009]
[1753299621945,0.14686471,118500.0,118490.0,0.55713926]
[1753299622119,0.14686471,118500.0,118490.0,0.56557836]
[1753299622507,0.14686471,118500.0,118490.0,0.55713926]
[1753299622708,0.14686471,118500.0,118490.0,0.56768836]
[1753299622921,0.14686471,118500.0,118490.0,0.56241926]
[1753299623358,0.12998786,118500.0,118490.0,0.56241926]
[1753299623578,0.14686442,118500.0,118490.0,0.56241926]
[1753299623752,0.11456442,118500.0,118490.0,0.57085836]
[1753299624190,0.11456435,118500.0,118490.0,0.57929739]
[1753299624394,0.14777444,118500.0,118490.0,0.56241926]
[1753299625112,0.11456435,118500.0,118490.0,0.57085836]
[1753299625731,0.12300281,118500.0,118490.0,0.56241926]
[1753299625933,0.13144134,118500.0,118490.0,0.54554078]
[1753299626127,0.17078051,118500.0,118490.0,0.55398023]
[1753299626338,0.15229933,118500.0,118490.0,0.56768878]
[1753299626663,0.15390317,118500.0,118490.0,0.56768878]
[1753299627104,0.15390317,118500.0,118490.0,0.57612788]
[1753299627105,0.13702618,118500.0,118490.0,0.57612788]
[1753299627329,0.10612618,118500.0,118490.0,0.57929738]
[1753299627553,0.10612618,118500.0,118490.0,0.56241925]
[1753299627777,0.11456464,118500.0,118490.0,0.57085842]
[1753299628013,0.10612618,118500.0,118490.0,0.5792971]
[1753299628276,0.09564786,118500.0,118490.0,0.5792971]
[1753299628488,0.25196316,118500.0,118490.0,0.5539798]
[1753299628705,0.24192072,118500.0,118490.0,0.56241897]
[1753299628927,0.32639802,118500.0,118490.0,0.56241897]
[1753299629164,0.33483662,118500.0,118490.0,0.54554078]
[1753299629373,0.32843802,118500.0,118490.0,0.56241947]
[1753299629645,0.32843795,118500.0,118490.0,0.5708585]
[1753299629862,0.32843795,118500.0,118490.0,0.57085857]
[1753299630082,0.23552226,118500.0,118490.0,0.5792976]
[1753299630511,0.24396058,118500.0,118490.0,0.5792976]
[1753299630951,0.23552226,118500.0,118490.0,0.5792976]
[1753299631216,0.24192065,118500.0,118490.0,0.5792976]
[1753299631402,0.23348226,118500.0,118490.0,0.5792976]
[1753299631874,0.24192065,118500.0,118490.0,0.5792976]
[1753299632105,0.25035918,118500.0,118490.0,0.56241947]
[1753299632317,0.24192065,118500.0,118490.0,0.57085864]
[1753299632539,0.24192065,118500.0,118490.0,0.57929774]
[1753299632766,0.24192065,118500.0,118490.0,0.57085864]
[1753299633008,0.24192065,118500.0,118490.0,0.57929774]
[1753299633239,0.24192065,118500.0,118490.0,0.57085864]
[1753299633579,0.24192065,118500.0,118490.0,0.56241947]
[1753299633795,0.25035918,118500.0,118490.0,0.57085864]
[1753299634019,0.25035918,118500.0,118490.0,0.56241947]
[1753299634704,0.24192065,118500.0,118490.0,0.57085864]
[1753299634912,0.25035918,118500.0,118490.0,0.56241947]
[1753299635370,0.26918659,118500.0,118490.0,0.55398023]
[1753299635589,0.26074778,118500.0,118490.0,0.55398023]
[1753299635813,0.25879402,118500.0,118490.0,0.57085892]
[1753299636053,0.27567087,118500.0,118490.0,0.56241939]
[1753299636272,0.27567087,118500.0,118490.0,0.57085863]
[1753299636721,0.22504402,118500.0,118490.0,0.57929766]
[1753299636928,0.23348226,118500.0,118490.0,0.57929766]
[1753299637354,0.24192072,118500.0,118490.0,0.56241939]
[1753299637568,0.51400166,118500.0,118490.0,0.53710125]
[1753299637798,0.36836945,118490.0,118480.0,0.5318355]
[1753299638029,0.62224577,118490.0,118480.0,0.5318355]
[1753299638259,0.77549577,118490.0,118480.0,0.36303064]
[1753299638561,0.75994503,118480.0,118470.0,0.53184975]
[1753299638780,0.75994503,118480.0,118450.0,0.22650983]
[1753299638781,0.35259858,118460.0,118450.0,0.17195427]
[1753299639017,0.55310377,118460.0,118450.0,0.36303064]
[1753299639252,0.03376807,118450.0,118440.0,0.16880758]
[1753299639471,0.28904363,118450.0,118440.0,0.53183822]
[1753299639713,0.38233829,118450.0,118440.0,0.36303064]
[1753299639931,0.55303731,118450.0,118440.0,0.36303064]
[1753299640162,0.70303731,118450.0,118440.0,0.00014732]
[1753299641302,1.04303731,118450.0,118440.0,0.00014732]
[1753299642215,0.36121612,118440.0,118430.0,0.36343064]
[1753299642465,0.66308072,118440.0,118430.0,0.36392192]
[1753299642686,0.66633072,118440.0,118430.0,0.36392192]
[1753299643813,0.58185342,118440.0,118430.0,0.36392192]
[1753299644065,0.58285342,118440.0,118430.0,0.36392192]
[1753299644726,0.59133629,118440.0,118430.0,0.36392192]
[1753299645649,0.59333629,118440.0,118430.0,0.36392192]
[1753299647674,0.55728629,118440.0,118430.0,0.53478804]
[1753299647920,0.45217833,118440.0,118430.0,0.53795804]
[1753299648142,0.45022833,118440.0,118430.0,0.53795804]
[1753299648383,0.4123661,118440.0,118430.0,0.53795804]
[1753299648593,0.58967042,118440.0,118430.0,0.53795804]
[1753299649513,0.58122797,118440.0,118430.0,0.53795804]
[1753299649977,1.07572797,118440.0,118430.0,0.53795804]
[1753299651248,1.06728531,118440.0,118430.0,0.53795804]
[1753299652681,0.89842344,118440.0,118430.0,0.53795804]
[1753299652911,1.0757284,118440.0,118430.0,0.53795804]
[1753299653552,0.1541113,118440.0,118430.0,1.29931923]
[1753299653764,0.13096,118470.0,118460.0,0.19415749]
[1753299653978,0.0844773,118470.0,118460.0,0.95520877]
[1753299654192,0.33395158,118500.0,118490.0,0.16879061]
[1753299654410,0.58324262,118500.0,118490.0,0.53698125]
[1753299654614,0.71171714,118500.0,118490.0,0.53698125]
[1753299654832,0.72916616,118500.0,118490.0,0.36303064]
[1753299655039,0.59816616,118500.0,118490.0,0.53182125]
[1753299655250,0.72916616,118500.0,118490.0,0.53182125]
[1753299655460,0.72916616,118500.0,118490.0,0.36303064]
[1753299655461,0.81364346,118500.0,118490.0,0.36303064]
[1753299655672,0.81369254,118500.0,118490.0,0.53182125]
[1753299656113,0.80525387,118500.0,118490.0,0.36303064]
[1753299656314,0.80525387,118500.0,118490.0,0.53182125]
[1753299656516,0.80625387,118500.0,118490.0,0.53182125]
[1753299656741,0.72177657,118500.0,118490.0,0.53182125]
[1753299657357,0.71314051,118500.0,118490.0,0.53182125]
[1753299657560,0.18566916,118490.0,118480.0,0.17196223]
[1753299657773,0.28897509,118490.0,118480.0,0.53182287]
[1753299657981,0.29741405,118490.0,118480.0,0.53381287]
[1753299658200,0.1097946,118490.0,118480.0,0.54542297]
[1753299658420,0.12827742,118490.0,118480.0,0.53698287]
[1753299658647,0.28862907,118490.0,118480.0,0.53698287]
[1753299658868,0.10135564,118490.0,118480.0,0.54542311]
[1753299659087,0.11139886,118490.0,118480.0,0.53698287]
[1753299659296,0.11139886,118490.0,118480.0,0.54542304]
[1753299659773,0.28018947,118490.0,118480.0,0.53698287]
[1753299659975,0.10135528,118490.0,118480.0,0.55386285]
[1753299660176,0.11139836,118490.0,118480.0,0.55386299]
[1753299660504,0.11983767,118490.0,118480.0,0.54542304]
[1753299661141,0.08608114,118490.0,118480.0,0.92533337]
[1753299661366,0.09452017,118490.0,118480.0,0.92533344]
[1753299661597,0.09452017,118490.0,118480.0,0.92533351]
[1753299661818,0.11139858,118490.0,118480.0,0.9168937]
[1753299662037,0.10295927,118490.0,118480.0,0.92533358]
[1753299662254,0.11139851,118490.0,118480.0,0.9168937]
[1753299662473,0.11983796,118490.0,118480.0,0.90001351]
[1753299662694,0.11139851,118490.0,118480.0,0.91689385]
[1753299662909,0.11139851,118490.0,118480.0,0.92533387]
[1753299663122,0.11983789,118490.0,118480.0,0.55386321]
[1753299663574,0.11139851,118490.0,118480.0,0.55386321]
[1753299664011,0.11139851,118490.0,118480.0,0.56230323]
[1753299664472,0.0945201,118490.0,118480.0,0.93377368]
[1753299664703,0.08608114,118490.0,118480.0,0.95821342]
[1753299664950,0.0844773,118490.0,118480.0,0.94133387]
[1753299665166,0.11983781,118490.0,118480.0,0.93289392]
[1753299665394,0.11983781,118490.0,118480.0,0.92533402]
[1753299665611,0.11139843,118490.0,118480.0,0.92533402]
[1753299666046,0.11139843,118490.0,118480.0,0.91689392]
[1753299666517,0.09452002,118490.0,118480.0,0.91689349]
[1753299666752,0.0844773,118490.0,118480.0,0.93377304]
[1753299666998,0.2893729,118500.0,118490.0,0.19410833]
[1753299667215,0.2428502,118500.0,118490.0,0.5578507]
[1753299667442,0.39908529,118500.0,118490.0,0.56945009]
[1753299667630,0.39908522,118500.0,118490.0,0.57788947]
[1753299667882,0.40752389,118500.0,118490.0,0.55257125]
[1753299668167,0.40752389,118500.0,118490.0,0.54541078]
[1753299668390,0.40952389,118500.0,118490.0,0.55385023]
[1753299668824,0.40952389,118500.0,118490.0,0.53697125]
[1753299669042,0.40952389,118500.0,118490.0,0.55385016]
[1753299669466,0.40952389,118500.0,118490.0,0.55385023]
[1753299669676,0.40952389,118500.0,118490.0,0.56228961]
[1753299669896,0.40952389,118500.0,118490.0,0.55385023]
[1753299670526,0.40952382,118500.0,118490.0,0.56228954]
[1753299670759,0.41796263,118500.0,118490.0,0.54541078]
[1753299670990,0.16879061,118490.0,118480.0,0.36619064]
[1753299671239,0.28075585,118490.0,118480.0,0.16880486]
[1753299671492,0.11196474,118490.0,118480.0,0.54226574]
[1753299671728,0.12200803,118490.0,118480.0,0.55386591]
[1753299671974,0.12200803,118490.0,118480.0,0.54542574]
[1753299672190,0.29079864,118490.0,118480.0,0.5369855]
[1753299672410,0.2891948,118490.0,118480.0,0.54542574]
[1753299672629,0.12040419,118490.0,118480.0,0.5369855]
[1753299672861,0.12200803,118490.0,118480.0,0.5369855]
[1753299673080,0.29079864,118490.0,118480.0,0.5369855]
[1753299673298,0.12040419,118490.0,118480.0,0.54542567]
[1753299673513,0.12200803,118490.0,118480.0,0.54542574]
[1753299673940,0.13044756,118490.0,118480.0,0.54542574]
[1753299674469,0.29079914,118490.0,118480.0,0.5369855]
[1753299674685,0.2891953,118490.0,118480.0,0.5369855]
[1753299674909,0.27231689,118490.0,118480.0,0.5369855]
[1753299675130,0.34835474,118490.0,118480.0,0.5318355]
[1753299675344,0.34835474,118490.0,118480.0,0.36303064]
[1753299675345,0.36455474,118490.0,118480.0,0.36303064]
[1753299675804,0.00844002,118480.0,118470.0,0.00316]
[1753299676028,0.15844045,118470.0,118460.0,0.1888764]
[1753299676270,0.2344773,118470.0,118460.0,0.19930749]
[1753299676493,0.24291775,118470.0,118460.0,0.19086633]
[1753299676722,0.25135834,118470.0,118460.0,0.19930764]
[1753299676945,0.2344773,118470.0,118460.0,0.21619004]
[1753299677086,0.2344773,118470.0,118460.0,0.59572068]
[1753299677303,0.24291768,118470.0,118460.0,0.59572068]
[1753299677500,0.2344773,118470.0,118460.0,0.59572068]
[1753299677710,0.2344773,118470.0,118460.0,0.61202068]
[1753299677918,0.3653573,118470.0,118460.0,0.61202068]
[1753299678129,0.37379761,118470.0,118460.0,0.61202068]
[1753299678330,0.38223799,118470.0,118460.0,0.61202068]
[1753299679194,0.38223799,118470.0,118460.0,0.60357952]
[1753299679402,0.39067851,118470.0,118460.0,0.59513828]
[1753299680023,0.39067851,118470.0,118460.0,0.60357952]
[1753299680228,0.2344773,118470.0,118460.0,0.61202068]
[1753299680413,0.3653573,118470.0,118460.0,0.61202068]
[1753299680577,0.2344773,118470.0,118460.0,0.61202068]
[1753299680811,0.3653573,118470.0,118460.0,0.61202068]
[1753299681016,0.37379761,118470.0,118460.0,0.61202068]
[1753299681491,0.38223813,118470.0,118460.0,0.60357952]